[Event "XVI Memorial Lezcano Montalvo 2024"]
[Site "Gran Canaria"]
[Date "2024.03.31"]
[Round "9.4"]
[White "Lianes Garcia, Marcos"]
[Black "Omelja, Artem"]
[Result "1-0"]
[ECO "B01"]
[WhiteElo "2398"]
[BlackElo "2438"]
[Annotator "TA"]
[PlyCount "127"]
[EventDate "2024.03.23"]
[EventType "swiss"]
[EventCountry "ESP"]
[SourceTitle "playchess.com"]
[Source "ChessBase"]
[SourceQuality "1"]
[TimeControl "5400+30"]

{[%evp 31,127,0,0,0,0,0,18,0,13,0,0,-4,0,0,0,0,7,0,0,0,0,0,0,-7,-7,-7,0,-7,-7,-7,0,0,0,0,0,0,0,0,0,0,0,-11,0,0,0,0,0,-34,-29,-21,-21,-224,-224,-217,-102,-104,0,0,0,0,0,0,8,8,174,174,185,76,241,125,344,324,450,444,450,450,368,450,414,352,307,163,608,570,524,481,466,466,524,444,4618,1735,1801,4694,2375,1231,29977,29979]} 1. e4 {[%emt 0:00:03]} d5 {[%emt 0:07:00]} 2. exd5 {[%emt 0:00:23]} Qxd5 {[%emt 0:00:08]} 3. Nc3 {[%emt 0:00:26]} Qa5 {[%emt 0:00:07]} 4. d4 {[%emt 0:00:53]} Nf6 {[%emt 0:00:16]} 5. Nf3 {[%emt 0:00:48]} Bg4 {[%emt 0:01:03]} 6. h3 {[%emt 0:00:09]} Bh5 {[%emt 0:00:19]} 7. g4 {[%emt 0:00:52]} Bg6 {[%emt 0:00:08]} 8. b4 {[%emt 0:05:22]} Qb6 {[%emt 0:14:15] B01: Scandinavian Defence.} 9. a3 {[%emt 0:02:54]} Nbd7 {[%emt 0:04:58]} 10. Bg2 {[%emt 0:21:17]} Qc6 $146 {[%emt 0:16:08]} ({Predecessor:} 10... O-O-O 11. Qe2 e6 12. O-O Nd5 13. Na4 Qc6 14. Nc5 Bxc5 15. bxc5 e5 16. c4 Qa6 17. Nxe5 Nxe5 18. dxe5 h5 19. Rd1 c6 20. Bg5 Rde8 21. Bxd5 f6 22. Be4 {1-0 Herzog,K (1915)-Tacke,H (1980) GER ML-280 email 2008}) 11. Bd2 {[%emt 0:03:34]} Ne4 {[%emt 0:02:27]} 12. Nh4 {[%emt 0:14:26]} Nxc3 {[%emt 0:00:49]} 13. Bxc6 {[%emt 0:00:06]} Nxd1 {[%emt 0:00:07]} 14. Bxd7+ {[%emt 0:00:18]} Kxd7 {[%emt 0:00:10]} 15. Nxg6 {[%emt 0:00:06]} hxg6 {[%emt 0:00:16]} 16. Rxd1 {[%emt 0:00:09]} e6 {[%emt 0:03:24]} 17. c4 {[%emt 0:01:14]} Bd6 {[%emt 0:04:35]} 18. Kf1 {[%emt 0:04:01]} f6 {[%emt 0:02:55]} 19. Kg2 {[%emt 0:00:29]} g5 {[%emt 0:00:50]} 20. Rhe1 {[%emt 0:04:53]} c6 {[%emt 0:00:15]} 21. a4 {[%emt 0:01:42]} Ke7 {[%emt 0:10:57]} 22. Bc3 {[%emt 0:01:30]} Kf7 {[%emt 0:00:17]} 23. Re2 {[%emt 0:01:00]} Rae8 {[%emt 0:05:57]} 24. Rb1 {[%emt 0:00:41]} Re7 {[%emt 0:01:29]} 25. Rbe1 {[%emt 0:01:16]} Rc8 {[%emt 0:01:26]} 26. Rb1 {[%emt 0:00:37]} Bf4 {[%emt 0:01:24]} 27. Rbe1 {[%emt 0:01:51]} b6 {[%emt 0:01:13]} 28. Rb1 {[%emt 0:02:02]} a6 {[%emt 0:00:26]} 29. Ra1 {[%emt 0:01:48]} Rd8 {[%emt 0:05:30]} 30. Rae1 {[%emt 0:02:26]} b5 {[%emt 0:00:44]} 31. c5 {[%emt 0:01:22]} bxa4 {[%emt 0:02:07]} 32. Ra1 {[%emt 0:02:14]} e5 {[%emt 0:00:14]} 33. dxe5 {[%emt 0:01:35]} Rd3 {[%emt 0:01:48]} 34. Bb2 {[%emt 0:03:58]} a3 {[%emt 0:02:36]} 35. Bxa3 {[%emt 0:00:34]} Rxe5 {[%emt 0:00:42]} ({Much worse is} 35... fxe5 36. Bb2 $14) 36. Rc2 {[%emt 0:01:21]} Re4 {[%emt 0:07:51]} 37. Bb2 {[%emt 0:02:48]} Rxb4 {[%emt 0:00:08]} 38. Rxa6 {[%emt 0:00:19]} Rbb3 {[%emt 0:00:52]} 39. Bc1 {[%emt 0:00:21]} Rxh3 {[%emt 0:01:22]} 40. Bxf4 {[%emt 0:00:47]} gxf4 {[%emt 0:00:08]} 41. Rxc6 $2 {[%emt 0:00:06]} (41. Ra7+ $11 {and White has nothing to worry.} Kg6 42. Rc4) 41... Rh4 $1 $19 {[%emt 0:00:54]} 42. Rb6 {[%emt 0:04:36]} Rbh3 {[%emt 0:00:33]} (42... Rxg4+ $19 {is more deadly.} 43. Kf1 Ra3) 43. Kf1 {[%emt 0:00:12] [#]} f3 {[%emt 0:00:28]} (43... Ra3 $1 $17 {[%cal Of4f3] ( -> ...f3!)} 44. Ke1 Rh1+ 45. Ke2 (45. Kd2 Rf1 $17) 45... f3+ 46. Kd2 Rh2) 44. Ke1 {[%emt 0:00:12]} Rxg4 {[%emt 0:00:10]} 45. Kd2 {[%emt 0:00:28]} Re4 {[%emt 0:01:18]} 46. Rb7+ {[%emt 0:00:28]} Kg6 {[%emt 0:00:58]} 47. Kd3 {[%emt 0:03:20]} Re8 $2 {[%emt 0:00:41]} (47... Re2 $11) 48. c6 $18 {[%emt 0:00:34]} Rhh8 {[%emt 0:00:56]} 49. Rd7 {[%emt 0:00:35]} (49. c7 $18) 49... Ra8 $2 {[%emt 0:00:46] [#]} (49... Re1 $16 {might work better.}) 50. c7 {[%emt 0:00:32]} (50. Ke4 $1 $18) 50... Rhc8 $2 {[%emt 0:00:31]} (50... Rhe8 $16 {keeps fighting.} 51. Rc3 Rec8) 51. Ke4 $18 {[%emt 0:00:25]} f5+ {[%emt 0:00:24]} 52. Kxf3 {[%emt 0:00:14]} Kf6 {[%emt 0:00:27]} 53. Rc6+ {[%emt 0:00:09]} Ke5 {[%emt 0:00:05]} 54. Rxg7 {[%emt 0:00:23]} Ra3+ {[%emt 0:00:07]} 55. Kg2 {[%emt 0:00:09]} Rd3 {[%emt 0:00:28]} 56. Re7+ {[%emt 0:01:10]} (56. Rgg6 $142) 56... Kf4 $2 {[%emt 0:00:16]} (56... Kd5 57. Rf6 Rg8+ 58. Kf1 Rc3 59. Rxf5+ Kd6) 57. Rc4+ $18 {[%emt 0:00:33]} Kg5 {[%emt 0:00:08]} 58. Re3 {[%emt 0:01:44]} Rd7 {[%emt 0:00:43]} 59. Rec3 {[%emt 0:00:12]} Rd5 {[%emt 0:01:30]} 60. Kg3 {[%emt 0:00:21]} Rd7 {[%emt 0:00:13]} (60... Kf6 $142 61. Rc6+ Kf7) 61. Rc6 $18 {[%emt 0:00:39]} Rd4 {[%emt 0:01:04]} 62. R3c4 {[%emt 0:00:57]} Rd3+ {[%emt 0:00:35]} 63. f3 {[%emt 0:00:08]} f4+ {[%emt 0:00:49]} 64. Rxf4 {[%emt 0:00:33]} 1-0

[Event "XVI Memorial Lezcano Montalvo 2024"]
[Site "Gran Canaria"]
[Date "2024.03.31"]
[Round "9.5"]
[White "Strikovic, Aleksa"]
[Black "Loiacono, Leonardo"]
[Result "1/2-1/2"]
[ECO "B20"]
[WhiteElo "2430"]
[BlackElo "2316"]
[Annotator "TA"]
[PlyCount "94"]
[EventDate "2024.03.23"]
[EventType "swiss"]
[EventCountry "ESP"]
[SourceTitle "playchess.com"]
[Source "ChessBase"]
[SourceQuality "1"]
[TimeControl "5400+30"]

{[%evp 19,94,9,18,14,0,0,5,-21,-9,-12,0,-27,-11,-29,-32,-33,-19,-16,-20,-20,0,-2,0,-2,-12,-6,-11,-15,-15,-22,-16,-22,-16,-16,-16,-16,-16,-16,-16,-16,0,0,0,-91,-97,-85,-114,-332,-424,-392,-461,-472,-468,-470,-306,-461,-466,-472,-455,-432,-425,-514,-12,-12,0,0,0,0,0,0,0,0,0,0,0,0,0]} 1. e4 {[%emt 0:01:07]} e6 {[%emt 0:02:51]} 2. d3 {[%emt 0:00:07]} c5 {[%emt 0:02:15]} 3. g3 {[%emt 0:00:10]} Nc6 {[%emt 0:00:44]} 4. Bg2 {[%emt 0:00:14]} g6 {[%emt 0:06:40]} 5. f4 {[%emt 0:00:51]} Bg7 {[%emt 0:01:09]} 6. Nf3 {[%emt 0:00:06]} Nge7 {[%emt 0:00:35]} 7. O-O {[%emt 0:00:07]} d6 {[%emt 0:01:42]} 8. c3 {[%emt 0:00:09]} b5 {[%emt 0:07:34] B20: Sicilian: Unusual White 2nd moves.} 9. Be3 {[%emt 0:26:45]} b4 {[%emt 0:12:06]} 10. d4 {[%emt 0:05:37]} d5 {[%emt 0:04:00]} 11. e5 $146 {[%emt 0:03:46]} ({Predecessor:} 11. exd5 Nxd5 12. Bf2 O-O 13. Ne5 Nxe5 14. dxe5 Ba6 15. Bxc5 Bxf1 16. Qxf1 Qc7 17. cxb4 {½-½ Donev,I (2390)-Bezler,R (2278) AUT-chT2W 0102 2001 (3.1)}) 11... c4 {[%emt 0:05:51]} 12. Nbd2 {[%emt 0:03:38]} a5 {[%emt 0:01:20]} 13. g4 {[%emt 0:00:11]} h5 {[%emt 0:05:00]} 14. h3 {[%emt 0:00:05]} Bd7 {[%emt 0:03:26]} 15. Bf2 {[%emt 0:10:50]} a4 {[%emt 0:04:40]} 16. a3 {[%emt 0:00:22]} bxc3 {[%emt 0:00:05]} 17. bxc3 {[%emt 0:00:06]} Na5 {[%emt 0:00:24]} 18. Ra2 {[%emt 0:02:27]} Nb3 {[%emt 0:00:20]} 19. Nb1 {[%emt 0:00:05]} hxg4 {[%emt 0:02:45]} 20. hxg4 {[%emt 0:01:19]} Nc6 {[%emt 0:00:32]} 21. Qe1 {[%emt 0:00:33]} Bf8 {[%emt 0:00:14]} 22. Bh4 {[%emt 0:00:19]} Be7 {[%emt 0:00:10]} 23. Bg5 {[%emt 0:00:21]} Bxg5 {[%emt 0:02:25]} 24. Nxg5 {[%emt 0:00:26]} Qe7 {[%emt 0:00:23]} 25. Qe3 {[%emt 0:00:51]} O-O-O {[%emt 0:00:52]} 26. Bf3 {[%emt 0:08:46]} Rdg8 {[%emt 0:00:44]} 27. Rh2 {[%emt 0:02:17]} Rxh2 {[%emt 0:00:17]} 28. Kxh2 {[%emt 0:00:02]} Na7 {[%emt 0:01:15]} (28... Rh8+ {is more complex.} 29. Kg3 Na7 30. Qe2 Be8) 29. Kg3 {[%emt 0:04:45]} Nb5 {[%emt 0:01:17]} (29... Rh8 {looks sharper.} 30. Qe2 Kc7 31. Qg2 Nb5) 30. Rh1 {[%emt 0:00:18]} Be8 {[%emt 0:02:00]} 31. Rh7 {[%emt 0:02:04]} (31. Qe2 $11 {keeps the balance.}) 31... Nxa3 $17 {[%emt 0:00:24]} 32. Nxa3 {[%emt 0:04:41]} Qxa3 {[%emt 0:00:05]} 33. Nxf7 $2 {[%emt 0:00:04]} (33. Ne4 $17 {was called for.} Qc1 (33... dxe4 34. Qxe4 Nd2 35. Qa8+ Kd7 36. Bc6+ Ke7 37. Qb7+ Kd8 38. Bxe8 $11) 34. Qxc1 Nxc1 35. Nd6+ (35. Nf6 Rf8 $17) 35... Kc7 36. Nxf7 Bxf7 37. Rxf7+ Kb6 38. Re7) 33... Bxf7 $19 {[%emt 0:04:36]} 34. Rxf7 {[%emt 0:00:02] [#]} Qb2 $1 {[%emt 0:12:17]} (34... Qc1 $2 35. Qxc1 Nxc1 36. Ra7 $18) 35. Ra7 {[%emt 0:05:14]} Nd2 {[%emt 0:01:58]} 36. Bg2 {[%emt 0:05:26]} (36. Rxa4 $2 {gets mated.} Nf1+ 37. Kh4 g5+ 38. fxg5 Rh8#) ({Don't go for} 36. Ra8+ $2 Kc7 (36... Kb7 $2 37. Rxg8 Nf1+ 38. Kh4 $19) (36... Kb7 $2 37. Rxg8 Nf1+ 38. Kh4 $19)) 36... a3 {[%emt 0:00:37]} 37. Rxa3 {[%emt 0:01:37]} (37. Ra8+ $142 Kb7 38. Rxa3 (38. Rxg8 $2 {too greedy.} a2 $19)) 37... Qxa3 $19 {[%emt 0:01:58]} 38. Qxd2 {[%emt 0:00:02]} Kd7 {[%emt 0:00:21]} 39. Bf3 {[%emt 0:02:45]} Qa1 {[%emt 0:01:33]} 40. Bd1 {[%emt 0:03:21]} Qb1 $2 {[%emt 0:03:13]} (40... Kc6 $19 41. Qc2 Kb6) 41. Qh2 $1 $11 {[%emt 0:03:17]} Kc6 {[%emt 0:07:31]} 42. Qh7 {[%emt 0:00:35]} Ra8 {[%emt 0:00:11]} 43. Qe7 {[%emt 0:02:25]} Qxd1 {[%emt 0:00:59]} 44. Qd6+ {[%emt 0:01:10]} Kb7 {[%emt 0:00:44]} 45. Qd7+ {[%emt 0:00:16]} Kb8 {[%emt 0:00:13]} 46. Qd8+ {[%emt 0:00:07]} Kb7 {[%emt 0:00:03]} 47. Qd7+ {[%emt 0:00:07]} Kb8 {[%emt 0:03:41]} 1/2-1/2

[Event "XVI Memorial Lezcano Montalvo 2024"]
[Site "Gran Canaria"]
[Date "2024.03.31"]
[Round "9.6"]
[White "Akhvlediani, Irakli"]
[Black "Fiorito, Francisco"]
[Result "1/2-1/2"]
[ECO "D15"]
[WhiteElo "2356"]
[BlackElo "2368"]
[Annotator "RC"]
[PlyCount "75"]
[EventDate "2024.03.23"]
[EventType "swiss"]
[EventCountry "ESP"]
[SourceTitle "playchess.com"]
[Source "ChessBase"]
[SourceQuality "1"]
[TimeControl "5400+30"]

1. d4 {[%emt 0:00:03]} d5 {[%emt 0:00:07]} 2. c4 {[%emt 0:00:08]} c6 {[%emt 0:00:08]} 3. Nf3 {[%emt 0:00:23]} Nf6 {[%emt 0:00:07]} 4. Nc3 {[%emt 0:00:04]} a6 {[%emt 0:06:24]} 5. e3 {[%emt 0:05:00]} b5 {[%emt 0:18:53]} 6. c5 {[%emt 0:02:45]} Nbd7 {[%emt 0:11:52]} 7. Be2 {[%emt 0:26:48]} g6 {[%emt 0:02:58]} 8. O-O {[%emt 0:16:16]} Bg7 {[%emt 0:00:10]} 9. b4 {[%emt 0:02:27]} O-O {[%emt 0:01:36]} 10. a4 {[%emt 0:00:04]} Rb8 {[%emt 0:00:29]} 11. axb5 {[%emt 0:00:38]} axb5 {[%emt 0:00:12]} 12. Bb2 {[%emt 0:05:10]} Qc7 {[%emt 0:04:40]} 13. Qc2 {[%emt 0:01:05]} Re8 {[%emt 0:05:35]} 14. Ra5 {[%emt 0:13:01]} e5 {[%emt 0:04:17]} 15. Rfa1 {[%emt 0:01:28]} e4 {[%emt 0:09:43]} 16. Nd2 {[%emt 0:00:09]} Nf8 {[%emt 0:00:44]} 17. Ra7 {[%emt 0:08:35]} Rb7 {[%emt 0:00:30]} 18. Rxb7 {[%emt 0:00:27]} Qxb7 {[%emt 0:00:09]} 19. Bc1 {[%emt 0:01:22]} Bd7 {[%emt 0:03:55]} 20. Qa2 {[%emt 0:00:05]} Rb8 {[%emt 0:00:14]} 21. Nb3 {[%emt 0:00:27]} Ne6 {[%emt 0:00:44]} 22. Qa7 {[%emt 0:00:43]} Qc8 {[%emt 0:00:13]} 23. Qa6 {[%emt 0:02:48]} Qc7 {[%emt 0:00:36]} 24. Bd2 {[%emt 0:00:48]} Ne8 {[%emt 0:00:46]} 25. f3 {[%emt 0:03:41]} exf3 {[%emt 0:09:16]} 26. Bxf3 {[%emt 0:00:03]} Ng5 {[%emt 0:01:58]} 27. Be1 {[%emt 0:00:52]} Bc8 {[%emt 0:01:46]} 28. Qa7 {[%emt 0:01:07]} Rb7 {[%emt 0:00:28]} 29. Qa8 {[%emt 0:00:04]} Rb8 {[%emt 0:00:05]} 30. Qa2 {[%emt 0:00:14]} Qe7 {[%emt 0:01:02]} 31. Qe2 {[%emt 0:00:09]} Bf5 {[%emt 0:00:56]} 32. Bg3 {[%emt 0:00:15]} Rc8 {[%emt 0:00:04]} 33. Ra6 {[%emt 0:01:20]} h5 {[%emt 0:01:48]} 34. Na5 {[%emt 0:03:43]} Qd7 {[%emt 0:01:08]} 35. Rb6 {[%emt 0:01:17]} Nf6 {[%emt 0:01:13]} 36. Rb7 {[%emt 0:02:58]} Qe6 {[%emt 0:00:15]} 37. Bd6 {[%emt 0:00:10]} Nfe4 {[%emt 0:00:43]} 38. Bxe4 {[%emt 0:01:39]} 1/2-1/2

[Event "XVI Memorial Lezcano Montalvo 2024"]
[Site "Gran Canaria"]
[Date "2024.03.31"]
[Round "9.7"]
[White "Garcia Blanco, Omar"]
[Black "Hernandez Leon, Alberto"]
[Result "1-0"]
[ECO "E94"]
[WhiteElo "2377"]
[BlackElo "2207"]
[Annotator "RC"]
[PlyCount "65"]
[EventDate "2024.03.23"]
[EventType "swiss"]
[EventCountry "ESP"]
[SourceTitle "playchess.com"]
[Source "ChessBase"]
[SourceQuality "1"]
[TimeControl "5400+30"]

1. Nf3 {[%emt 0:02:40]} Nf6 {[%emt 0:02:06]} 2. c4 {[%emt 0:00:09]} g6 {[%emt 0:01:39]} 3. Nc3 {[%emt 0:00:15]} Bg7 {[%emt 0:00:17]} 4. e4 {[%emt 0:00:16]} d6 {[%emt 0:00:09]} 5. d4 {[%emt 0:00:18]} O-O {[%emt 0:00:19]} 6. Be2 {[%emt 0:00:21]} Nbd7 {[%emt 0:06:55]} 7. O-O {[%emt 0:00:25]} e5 {[%emt 0:00:12]} 8. Be3 {[%emt 0:00:14]} c6 {[%emt 0:06:47]} 9. d5 {[%emt 0:01:22]} c5 {[%emt 0:04:29]} 10. h3 {[%emt 0:00:15]} a6 {[%emt 0:04:48]} 11. g4 {[%emt 0:03:52]} h5 {[%emt 0:08:20]} 12. Ng5 {[%emt 0:06:37]} Nh7 {[%emt 0:08:17]} 13. Qd2 {[%emt 0:06:11]} Ndf6 {[%emt 0:11:24]} 14. gxh5 {[%emt 0:09:44]} gxh5 {[%emt 0:01:58]} 15. Kh2 {[%emt 0:04:34]} Qd7 {[%emt 0:05:08]} 16. Qd3 {[%emt 0:00:06]} Kh8 {[%emt 0:04:08]} 17. Rg1 {[%emt 0:01:51]} b5 {[%emt 0:04:09]} 18. Bd2 {[%emt 0:03:39]} Nxg5 {[%emt 0:11:32]} 19. Rxg5 {[%emt 0:01:49]} b4 {[%emt 0:05:38]} 20. Nd1 {[%emt 0:12:02]} Nh7 {[%emt 0:02:21]} 21. Rxh5 {[%emt 0:02:39]} f5 {[%emt 0:05:01]} 22. exf5 {[%emt 0:00:12]} Bf6 {[%emt 0:01:00]} 23. Ne3 {[%emt 0:01:53]} Qf7 {[%emt 0:02:08]} 24. Rg1 {[%emt 0:01:00]} Bd7 {[%emt 0:00:11]} 25. Rg6 {[%emt 0:00:42]} e4 {[%emt 0:01:46]} 26. Qxe4 {[%emt 0:01:24]} Rae8 {[%emt 0:00:11]} 27. Qg4 {[%emt 0:01:56]} Rg8 {[%emt 0:01:16]} 28. Bd3 {[%emt 0:05:37]} Qe7 {[%emt 0:00:36]} 29. Qf3 {[%emt 0:08:25]} Ref8 {[%emt 0:00:45]} 30. Kh1 {[%emt 0:04:42]} Be8 {[%emt 0:00:51]} 31. Ng4 {[%emt 0:03:06]} Bxg6 {[%emt 0:00:56]} 32. fxg6 {[%emt 0:00:05]} Bg5 {[%emt 0:00:41]} 33. Bxg5 {[%emt 0:18:39]} 1-0

[Event "XVI Memorial Lezcano Montalvo 2024"]
[Site "Gran Canaria"]
[Date "2024.03.31"]
[Round "9.8"]
[White "Kurajica, Bojan"]
[Black "Lizzul Coppe, Mirko"]
[Result "1-0"]
[ECO "D78"]
[WhiteElo "2444"]
[BlackElo "2027"]
[Annotator "RC"]
[PlyCount "113"]
[EventDate "2024.03.23"]
[EventType "swiss"]
[EventCountry "ESP"]
[SourceTitle "playchess.com"]
[Source "ChessBase"]
[SourceQuality "1"]
[TimeControl "5400+30"]

1. d4 {[%emt 0:00:02]} Nf6 {[%emt 0:00:02]} 2. Nf3 {[%emt 0:00:08]} g6 {[%emt 0:00:07]} 3. g3 {[%emt 0:00:10]} Bg7 {[%emt 0:00:08]} 4. Bg2 {[%emt 0:00:03]} d5 {[%emt 0:00:11]} 5. c4 {[%emt 0:01:21]} c6 {[%emt 0:01:58]} 6. Qb3 {[%emt 0:00:08]} O-O {[%emt 0:04:48]} 7. O-O {[%emt 0:00:11]} Ne4 {[%emt 0:11:40]} 8. Nc3 {[%emt 0:02:32]} Qb6 {[%emt 0:07:14]} 9. cxd5 {[%emt 0:12:18]} Nxc3 {[%emt 0:04:45]} 10. bxc3 {[%emt 0:00:31]} Qxb3 {[%emt 0:01:46]} 11. axb3 {[%emt 0:00:06]} cxd5 {[%emt 0:00:10]} 12. Ne5 {[%emt 0:10:18]} Nc6 {[%emt 0:12:23]} 13. Nxc6 {[%emt 0:09:03]} bxc6 {[%emt 0:00:15]} 14. Ba3 {[%emt 0:00:06]} Bf5 {[%emt 0:19:17]} 15. Bc5 {[%emt 0:11:30]} a5 {[%emt 0:02:25]} 16. Ra3 {[%emt 0:00:14]} Rfb8 {[%emt 0:04:28]} 17. Rfa1 {[%emt 0:05:51]} Bc2 {[%emt 0:00:46]} 18. Rxa5 {[%emt 0:01:38]} Rxa5 {[%emt 0:00:31]} 19. Rxa5 {[%emt 0:00:04]} Bxb3 {[%emt 0:03:09]} 20. Bxe7 {[%emt 0:00:22]} Bc4 {[%emt 0:07:20]} 21. Bf3 {[%emt 0:01:34]} h5 {[%emt 0:01:36]} 22. Ra1 {[%emt 0:07:18]} Rb3 {[%emt 0:02:45]} 23. Rc1 {[%emt 0:02:35]} f5 {[%emt 0:06:22]} 24. e3 {[%emt 0:01:22]} Kf7 {[%emt 0:00:31]} 25. Bb4 {[%emt 0:00:16]} Rb2 {[%emt 0:02:57]} 26. h3 {[%emt 0:02:35]} Bd3 {[%emt 0:02:48]} 27. g4 {[%emt 0:06:42]} hxg4 {[%emt 0:00:16]} 28. hxg4 {[%emt 0:00:04]} Rb1 {[%emt 0:02:17]} 29. Rxb1 {[%emt 0:00:10]} Bxb1 {[%emt 0:00:02]} 30. gxf5 {[%emt 0:00:38]} Bxf5 {[%emt 0:00:20]} 31. Be2 {[%emt 0:00:27]} Bh6 {[%emt 0:01:09]} 32. Ba6 {[%emt 0:02:27]} Ke8 {[%emt 0:00:24]} 33. Kf1 {[%emt 0:00:11]} Kd7 {[%emt 0:01:02]} 34. Ke2 {[%emt 0:00:13]} Bg5 {[%emt 0:00:53]} 35. f3 {[%emt 0:00:34]} Be6 {[%emt 0:00:37]} 36. Bd3 {[%emt 0:00:43]} Bf7 {[%emt 0:00:22]} 37. Bf8 {[%emt 0:03:27]} Ke8 {[%emt 0:00:33]} 38. Bg7 {[%emt 0:00:07]} Kd7 {[%emt 0:00:28]} 39. Be5 {[%emt 0:00:29]} Bh6 {[%emt 0:00:33]} 40. e4 {[%emt 0:02:55]} Bc1 {[%emt 0:00:29]} 41. Ba6 {[%emt 0:00:26]} Ba3 {[%emt 0:00:30]} 42. Kd3 {[%emt 0:00:15]} c5 {[%emt 0:00:36]} 43. Bb5+ {[%emt 0:02:16]} Ke7 {[%emt 0:00:17]} 44. Bc6 {[%emt 0:01:35]} dxe4+ {[%emt 0:00:32]} 45. fxe4 {[%emt 0:00:10]} cxd4 {[%emt 0:00:22]} 46. cxd4 {[%emt 0:00:06]} Bb4 {[%emt 0:00:51]} 47. d5 {[%emt 0:01:48]} Bc5 {[%emt 0:00:31]} 48. Bf4 {[%emt 0:03:02]} Ba3 {[%emt 0:00:30]} 49. e5 {[%emt 0:00:22]} Kd8 {[%emt 0:00:27]} 50. e6 {[%emt 0:03:09]} Bg8 {[%emt 0:00:29]} 51. Ke4 {[%emt 0:01:03]} Be7 {[%emt 0:00:27]} 52. Bd7 {[%emt 0:03:59]} g5 {[%emt 0:00:28]} 53. Be5 {[%emt 0:00:53]} Bh7+ {[%emt 0:00:41]} 54. Kd4 {[%emt 0:00:11]} g4 {[%emt 0:00:30]} 55. d6 {[%emt 0:00:44]} Bh4 {[%emt 0:00:14]} 56. Kd5 {[%emt 0:00:16]} Bg8 {[%emt 0:00:47]} 57. Bd4 {[%emt 0:00:16]} 1-0

[Event "XVI Memorial Lezcano Montalvo 2024"]
[Site "Gran Canaria"]
[Date "2024.03.31"]
[Round "9.9"]
[White "Fiorito, Joaquin"]
[Black "Pleschke, Julius Jonas"]
[Result "1-0"]
[ECO "E51"]
[WhiteElo "2409"]
[BlackElo "1993"]
[Annotator "TA"]
[PlyCount "111"]
[EventDate "2024.03.23"]
[EventType "swiss"]
[EventCountry "ESP"]
[SourceTitle "playchess.com"]
[Source "ChessBase"]
[SourceQuality "1"]
[TimeControl "5400+30"]

{[%evp 20,111,39,25,22,27,27,24,22,26,28,20,20,28,14,28,65,0,0,0,0,-5,0,0,0,0,0,0,0,0,0,0,0,0,0,0,0,0,0,0,0,0,0,0,8,0,0,0,0,0,0,0,0,0,0,0,0,0,0,0,0,0,0,0,0,0,0,0,0,0,0,0,0,-47,-47,-47,-47,-75,-75,-75,-80,-1991,0,0,0,0,0,0,0,0,0,0,0,0]} 1. d4 {[%emt 0:00:08]} Nf6 {[%emt 0:00:07]} 2. c4 {[%emt 0:00:24]} e6 {[%emt 0:00:25]} 3. Nc3 {[%emt 0:00:45]} Bb4 {[%emt 0:01:04]} 4. e3 {[%emt 0:00:15]} O-O {[%emt 0:01:04]} 5. Bd2 {[%emt 0:00:15]} d5 {[%emt 0:01:30]} 6. Nf3 {[%emt 0:00:19][%cal Bg1f3,Bf3d4,Bd4c6][%mdl 32]} c5 {[%emt 0:01:20]} 7. a3 {[%emt 0:00:40]} Bxc3 {[%emt 0:00:17]} 8. Bxc3 {[%emt 0:00:06]} Ne4 {[%emt 0:00:26]} 9. Rc1 {[%emt 0:00:14]} Nxc3 {[%emt 0:00:49]} 10. Rxc3 {[%emt 0:00:09]} cxd4 {[%emt 0:00:29]} 11. Nxd4 {[%emt 0:04:48]} dxc4 {[%emt 0:00:30]} 12. Bxc4 {[%emt 0:00:28]} Bd7 {[%emt 0:00:49]} 13. Qb3 {[%emt 0:06:36]} Nc6 {[%emt 0:29:20] White has an edge.} 14. Qxb7 {[%emt 0:06:27]} Rb8 {[%emt 0:02:45]} 15. Nxc6 {[%emt 0:00:59]} Rxb7 {[%emt 0:00:07]} 16. Nxd8 {[%emt 0:00:19]} Rxb2 {[%emt 0:02:14] [#]} 17. Nxe6 $1 {[%emt 0:12:48]} Rc8 {[%emt 0:08:57]} (17... Bxe6 18. Bd3) 18. Rb3 {[%emt 0:02:22]} (18. Ng5 $2 Rb1+ 19. Kd2 Rxh1 $19) (18. Nc5 $1 $14 Rxc5 19. O-O (19. Bxf7+ Kxf7 20. Rxc5 Rb1+ 21. Ke2 Rxh1 $19)) 18... Rxb3 $11 {[%emt 0:04:12]} 19. Bxb3 {[%emt 0:00:04]} Bxe6 {[%emt 0:00:25][%mdl 4096] Endgame. KRB-KRB} 20. Bd1 {[%emt 0:00:07]} Rc3 {[%emt 0:09:15]} 21. a4 {[%emt 0:01:01]} Ra3 {[%emt 0:00:20]} 22. Kd2 {[%emt 0:02:59]} Bd7 {[%emt 0:07:12]} 23. Kc1 {[%emt 0:08:21]} Ra2 {[%emt 0:01:37][%cal Od7c6]} (23... Bxa4 $2 {loses.} 24. Kb2 Rd3 25. Bxa4 $18) 24. Rf1 {[%emt 0:02:21]} Bxa4 {[%emt 0:01:22]} 25. Kb1 {[%emt 0:00:08] Dodges Ra1+} Bb5 {[%emt 0:00:10]} 26. Kxa2 {[%emt 0:00:03]} Bxf1 {[%emt 0:00:10] KB-KB} 27. Bf3 {[%emt 0:00:06]} Kf8 {[%emt 0:00:19]} 28. Ka3 {[%emt 0:00:04]} Ke7 {[%emt 0:00:33]} 29. Kb4 {[%emt 0:00:04]} Kd6 {[%emt 0:00:25]} 30. Bb7 {[%emt 0:00:10]} Kc7 {[%emt 0:01:09]} 31. Bd5 {[%emt 0:00:05]} Kd6 {[%emt 0:07:42]} 32. Be4 {[%emt 0:01:18]} h6 {[%emt 0:03:50]} 33. g3 {[%emt 0:00:49]} g5 {[%emt 0:01:40]} 34. Bb7 {[%emt 0:00:59]} f6 {[%emt 0:03:37]} 35. Bf3 {[%emt 0:00:59]} Bd3 {[%emt 0:01:40]} 36. Ba8 {[%emt 0:00:20]} Bf5 {[%emt 0:03:09]} 37. Bf3 {[%emt 0:01:37]} Be6 {[%emt 0:01:07]} 38. Kb5 {[%emt 0:01:59]} Bc8 {[%emt 0:01:11]} 39. Bg2 {[%emt 0:00:44]} Kc7 {[%emt 0:03:49]} 40. Kc5 {[%emt 0:00:25]} Bd7 {[%emt 0:00:32]} 41. Bd5 {[%emt 0:01:25]} Be8 {[%emt 0:00:34]} 42. h4 {[%emt 0:06:21]} gxh4 {[%emt 0:02:14]} 43. gxh4 {[%emt 0:00:05]} Bd7 {[%emt 0:00:46]} 44. f4 {[%emt 0:02:49]} f5 {[%emt 0:00:38]} 45. Bb3 {[%emt 0:01:23]} a5 {[%emt 0:00:32]} 46. Kd5 {[%emt 0:04:56]} (46. Bc2 $11) 46... a4 $15 {[%emt 0:00:25]} 47. Ba2 {[%emt 0:00:39]} Kb6 $1 {[%emt 0:00:37]} 48. Kd6 {[%emt 0:02:32] [#]} Bc8 {[%emt 0:00:28]} 49. Ke5 {[%emt 0:00:29]} Kc5 {[%emt 0:00:14] Threatens to win with ...a3.} 50. Kf6 $2 {[%emt 0:01:03][%mdl 8192] [#]} (50. e4 $17 fxe4 51. Kxe4) 50... a3 $2 {[%emt 0:00:47]} (50... Kd6 $1 $19 {...Bd7 is the strong threat.} 51. h5 a3) 51. Kg6 $11 {[%emt 0:00:49] The position is equal.} Ba6 {[%emt 0:00:21]} 52. Kxh6 {[%emt 0:01:37]} Bc4 {[%emt 0:00:12]} 53. Bb1 {[%emt 0:00:20]} Bd3 {[%emt 0:00:46]} 54. Ba2 {[%emt 0:00:14]} (54. Bxd3 $2 {too greedy.} a2 55. Bxf5 a1=Q $19 (55... a1=B $2 56. h5 $18)) 54... Bc4 {[%emt 0:00:09]} 55. Bb1 {[%emt 0:00:45]} Bd3 {[%emt 0:00:01]} 56. Ba2 {[%emt 0:00:21][%mdl 32768] Weighted Error Value: White=0.28 (precise) /Black=0.22 (precise) .  Loses game:     	White=1     	---        Missed win:     	---       	Black=1      Mistake:       	White=2     	---        Inaccurate:     	White=1     	Black=1      OK:         	White=20    	Black=29     Best:        	White=3     	Black=5      Strong:       	---       	Black=1     . Loss on time!?} (56. Bxd3 $2 {is the wrong capture.} a2 57. Bxf5 a1=Q $19 (57... a1=B $2 58. e4 $18)) 1-0